bitfinex-derivatives/quotes_ETHF0:USTF0_20240907
["timestamp","ask_amount","ask_price","bid_price","bid_amount"]
[1725683439166,1.3389,2241.4,2241.3,2.39679063]
[1725683439464,1.3389,2241.4,2241.3,1.22778]
[1725683439665,1.3389,2241.4,2241.3,2.39679063]
[1725683439866,1.3389,2241.4,2241.3,1.22778]
[1725683440367,1.29,2241.4,2241.3,1.22778]
[1725683442067,1.6758,2241.4,2241.3,1.22778]
[1725683442766,1.6758,2241.4,2241.3,0.3876]
[1725683442963,1.6758,2241.4,2241.2,0.44628]
[1725683443163,1.6758,2241.4,2241.2,0.82948]
[1725683443472,2.12206,2241.4,2241.2,0.3832]
[1725683443669,1.6758,2241.4,2241.2,0.3832]
[1725683444172,1.6758,2241.4,2241.2,0.82949]
[1725683446971,0.3888,2241.3,2241.2,0.82949]
[1725683449371,0.3888,2241.3,2241.2,4.23118021]
[1725683449563,1.6758,2241.4,2241.2,4.23118021]
[1725683449771,1.6758,2241.4,2241.2,1.99850063]
[1725683451880,0.3832,2241.3,2241.2,1.99850063]
[1725683452070,0.3832,2241.3,2241.2,4.23117708]
[1725683454275,0.3832,2241.3,2241.2,4.43271559]
[1725683456377,0.3832,2241.3,2241.2,3.98642559]
[1725683456575,0.3832,2241.3,2241.1,0.81441]
[1725683456978,0.3832,2241.3,2241.2,0.4463]
[1725683459179,0.3858,2241.4,2241.3,0.44628]
[1725683459374,0.3746,2241.5,2241.4,0.44626]
[1725683459571,0.7265,2241.6,2241.5,0.44624]
[1725683461675,6.39858952,2242.2,2241.5,14.03455122]
[1725683461872,1.7525258,2242.1,2241.7,0.44618]
[1725683462071,1.29,2241.9,2241.8,0.44618]
[1725683462478,5.7508,2241.9,2241.5,1.16756847]
[1725683462780,1.73623,2241.6,2241.2,1.61385847]
[1725683462981,1.29,2241.4,2241.2,0.82689]
[1725683463177,0.3811,2241.3,2241.2,0.82689]
[1725683463883,0.3811,2241.3,2241.2,0.3806]
[1725683464583,0.3811,2241.3,2241.2,1.54816847]
[1725683466191,0.3901,2241.5,2241.3,0.44627]
[1725683466483,0.3901,2241.5,2241.3,1.61400441]
[1725683467485,0.3901,2241.5,2241.3,1.16773441]
[1725683469386,0.83634,2241.5,2241.3,1.16773441]
[1725683469589,1.19754,2241.5,2241.3,1.16773441]
[1725683471583,1.19754,2241.5,2241.4,1.16773441]
[1725683472283,1.19754,2241.5,2241.4,3.40030453]
[1725683472483,1.19754,2241.5,2241.4,1.16773441]
[1725683472686,1.19754,2241.5,2241.4,3.40031043]
[1725683473885,1.19754,2241.5,2241.4,1.16773441]
[1725683475088,0.7513,2241.5,2241.4,1.16773441]
[1725683475992,0.3901,2241.5,2241.4,1.16773441]
[1725683476182,0.3901,2241.5,2241.4,3.40031533]
[1725683476387,0.83634,2241.5,2241.4,3.40031533]
[1725683476587,0.3901,2241.5,2241.4,3.40031533]
[1725683477182,0.83634,2241.5,2241.4,3.4003055]
[1725683477385,0.83634,2241.5,2241.4,1.16773441]
[1725683478489,0.7617,2241.7,2241.4,1.16773441]
[1725683478685,1.1482,2241.7,2241.5,3.78585181]
[1725683478892,1.59442,2241.7,2241.5,1.91813441]
[1725683479798,1.59442,2241.7,2241.5,0.7504]
[1725683480387,1.59442,2241.7,2241.5,1.19663]
[1725683480600,1.59442,2241.7,2241.5,0.7504]
[1725683481186,0.44622,2241.6,2241.5,0.7504]
[1725683481582,0.44622,2241.6,2241.5,0.3647]
[1725683482396,0.44622,2241.6,2241.4,0.44625]
[1725683484197,1.73622,2241.6,2241.4,0.44625]
[1725683488296,0.44624,2241.5,2241.4,0.44625]
[1725683489291,0.44624,2241.5,2241.3,2.36629441]
[1725683489497,0.44624,2241.5,2241.4,0.44626]
[1725683490000,0.44624,2241.5,2241.3,2.36629441]
[1725683491592,0.44624,2241.5,2241.4,0.44626]
[1725683492998,0.44624,2241.5,2241.3,2.36629441]
[1725683493199,1.73623,2241.6,2241.4,0.44626]
[1725683493496,1.73623,2241.6,2241.3,2.36629441]
[1725683493699,1.73623,2241.6,2241.3,4.12004355]
[1725683493894,1.73623,2241.6,2241.4,1.16773441]
[1725683494700,1.73623,2241.6,2241.3,1.19856]
[1725683496999,0.44624,2241.5,2241.3,1.19856]
[1725683498705,1.73623,2241.6,2241.3,1.19856]
[1725683499005,1.73623,2241.6,2241.4,0.44625]
[1725683499198,1.73623,2241.6,2241.3,1.19856]
[1725683499798,1.73622,2241.6,2241.4,0.44625]
[1725683500004,1.59441,2241.7,2241.5,0.3906]
[1725683500206,1.59441,2241.7,2241.6,0.3852]
[1725683500398,1.59441,2241.7,2241.6,0.7472]
[1725683500798,6.05521,2241.7,2241.6,0.7472]
[1725683501095,3.2078,2241.8,2241.6,0.7472]
[1725683501299,0.4462,2241.7,2241.6,0.7472]
[1725683504007,4.907,2241.7,2241.6,0.7472]
[1725683504307,0.4462,2241.7,2241.6,0.7472]
[1725683506001,0.4462,2241.7,2241.6,1.19342]
[1725683506210,0.4462,2241.7,2241.6,0.7472]
[1725683506507,4.907,2241.7,2241.6,0.7472]
[1725683507603,4.907,2241.7,2241.6,1.19342]
[1725683507806,2.50907,2241.9,2241.6,0.7472]
[1725683508106,0.44618,2241.8,2241.6,1.1934]
[1725683508300,0.44618,2241.8,2241.6,2.36113441]
[1725683508907,0.385,2241.9,2241.7,0.44619]
[1725683509098,0.44616,2242.0,2241.8,0.3727]
[1725683509300,0.44616,2242.0,2241.9,0.3942]
[1725683509504,0.44616,2242.0,2241.9,0.7808]
[1725683509705,2.52153,2242.1,2241.9,0.7808]
[1725683511602,0.3875,2242.1,2241.9,0.7808]
[1725683511904,0.3875,2242.1,2241.9,1.22695]
[1725683512306,0.83362,2242.1,2241.9,1.22695]
[1725683518611,0.83362,2242.1,2242.0,0.44614]
[1725683518810,0.85002542,2242.1,2242.0,0.44614]
[1725683519015,0.85002546,2242.1,2241.9,1.22695]
[1725683519314,0.83362,2242.1,2241.9,1.22695]
[1725683520814,0.83362,2242.1,2242.0,0.44614]
[1725683521013,0.85002554,2242.1,2242.0,0.44614]
[1725683521402,0.85002548,2242.1,2242.0,0.44614]
[1725683522004,5.97921548,2242.1,2241.6,3.2078]
[1725683522219,1.30640548,2242.0,2241.7,0.4462]
[1725683522416,0.44618,2241.8,2241.7,0.4462]
[1725683522912,0.82038,2241.8,2241.7,0.4462]
[1725683523818,0.3742,2241.8,2241.7,0.4462]
[1725683524210,0.82039,2241.8,2241.6,0.3619]
[1725683524722,0.82039,2241.8,2241.7,0.4462]
[1725683525108,0.3742,2241.8,2241.6,0.8081]
[1725683525312,0.44622,2241.6,2241.4,1.61397441]
[1725683525622,0.3754,2241.5,2241.4,0.44624]
[1725683525813,0.7722,2241.5,2241.4,0.44624]
[1725683527014,0.3754,2241.5,2241.4,0.44624]
[1725683528123,1.29,2241.6,2241.5,0.44624]
[1725683529116,1.2101,2241.7,2241.4,0.44624]
[1725683530819,1.2101,2241.7,2241.5,0.44623]
[1725683532714,1.2101,2241.7,2241.6,0.3618]
[1725683535621,2.11039,2241.8,2241.6,0.80801]
[1725683535820,2.48469,2241.8,2241.6,0.80801]
[1725683537824,0.4462,2241.7,2241.6,0.80801]
[1725683538528,0.8344,2241.7,2241.6,0.80801]
[1725683540225,0.8344,2241.7,2241.6,0.3618]
[1725683541726,1.11565,2241.4,2241.1,1.16773441]
[1725683542025,0.44633,2241.1,2240.9,0.44636]
[1725683542219,1.73631,2241.2,2241.0,0.82994]
[1725683542411,0.44631,2241.2,2241.0,0.82994]
[1725683543420,0.44631,2241.2,2241.1,0.44632]
[1725683543614,2.50849,2241.3,2241.2,0.4463]
[1725683543812,0.7722,2241.3,2241.2,0.4463]
[1725683544021,0.22798401,2241.4,2241.3,0.44628]
[1725683544410,1.676,2241.5,2241.4,0.44626]
[1725683544617,2.12225,2241.5,2241.3,0.44627]
[1725683544817,2.12225,2241.5,2241.4,0.3714]
[1725683547919,2.13866018,2241.5,2241.4,0.3714]
[1725683549228,2.12225,2241.5,2241.4,0.3714]
[1725683549426,2.13866018,2241.5,2241.4,0.3714]
[1725683549621,2.12225,2241.5,2241.4,0.3714]
[1725683550130,2.13866033,2241.5,2241.4,0.3714]
[1725683550525,2.12225,2241.5,2241.4,0.3714]
[1725683551629,2.12225,2241.5,2241.4,0.81766]
[1725683551828,2.12225,2241.5,2241.4,0.3714]
[1725683552632,2.12225,2241.5,2241.4,0.81766]
[1725683553932,2.12225,2241.5,2241.4,0.3714]
[1725683556237,1.29,2241.6,2241.5,0.44624]
[1725683556435,1.29,2241.6,2241.5,0.82664]
[1725683556633,1.29,2241.6,2241.5,1.21834]
[1725683562144,0.3673,2241.7,2241.6,0.44622]
[1725683563244,2.3501708,2241.8,2241.6,0.44622]
[1725683563443,2.7174708,2241.8,2241.6,0.44622]
[1725683563644,2.7174708,2241.8,2241.7,0.4001]
[1725683565841,2.2712708,2241.8,2241.5,1.21833]
[1725683566045,2.2712708,2241.8,2241.5,0.83793]
[1725683566343,0.80831,2241.7,2241.6,0.44622]
[1725683574654,0.7571,2241.8,2241.7,0.4462]
[1725683575250,0.3898,2241.8,2241.7,0.4462]
[1725683575556,0.44612,2242.1,2241.9,0.44615]
[1725683575750,0.44614,2242.0,2241.8,1.55806]
[1725683576253,1.73614,2242.0,2241.8,1.55806]
[1725683577549,1.29,2242.0,2241.8,1.1119]
[1725683577747,1.73614,2242.0,2241.8,1.55807]
[1725683577942,0.44618,2241.8,2241.6,3.2078]
[1725683578154,0.3733,2241.7,2241.6,3.65401]
[1725683578342,0.7368,2241.7,2241.6,3.65401]
[1725683578543,0.44619,2241.8,2241.7,0.4462]
[1725683578750,0.44619,2241.8,2241.6,3.654]
[1725683579354,1.683,2241.9,2241.7,0.44618]
[1725683579355,2.12916,2241.9,2241.7,0.44618]
[1725683579754,2.12916,2241.9,2241.8,0.3752]
[1725683580355,0.7368,2242.0,2241.8,0.3752]
[1725683580549,1.29,2241.9,2241.8,0.3752]
[1725683580850,1.29,2241.9,2241.8,0.82138]
[1725683581852,2.47295,2242.0,2241.9,0.44616]
[1725683583152,2.47295,2242.0,2241.8,0.82137]
[1725683583653,0.82606,2241.9,2241.8,0.44617]
[1725683584555,0.3799,2241.9,2241.8,0.44617]
[1725683586155,0.3733,2242.0,2241.7,0.3681]
[1725683586358,1.73613,2242.1,2241.9,0.44616]
[1725683586560,1.73613,2242.1,2242.0,0.3816]
[1725683586758,1.75253554,2242.1,2242.0,0.7793]
[1725683586954,6.21253554,2242.1,2242.0,0.7793]
[1725683587256,0.01640554,2242.1,2242.0,1.22544]
[1725683588556,0.01640499,2242.1,2242.0,1.22544]
[1725683589659,0.01640496,2242.1,2242.0,1.22544]
[1725683592459,2.1055,2242.2,2242.0,1.22544]
[1725683592659,0.0164048,2242.1,2242.0,1.22544]
[1725683593358,2.1055,2242.2,2242.0,1.22544]
[1725683594262,1.6594,2242.2,2241.8,3.5765]
[1725683594455,1.73614,2242.0,2241.8,4.41606]
[1725683594655,1.73614,2242.0,2241.8,4.41607]
[1725683595063,1.73614,2242.0,2241.8,1.20827]
[1725683595752,1.73614,2242.0,2241.9,0.44616]
[1725683600458,1.29,2242.0,2241.9,0.44616]
[1725683600963,0.84073,2242.1,2241.9,0.44616]
[1725683601171,0.44614,2242.0,2241.9,0.44616]
[1725683601871,0.84073,2242.1,2242.0,0.44614]
[1725683602265,5.30073,2242.1,2242.0,0.44614]
[1725683604768,0.84073,2242.1,2242.0,0.44614]
[1725683604964,0.81551,2242.2,2242.1,0.44612]
[1725683605371,0.3694,2242.2,2242.1,0.44612]
[1725683606064,0.3694,2242.2,2242.1,0.83082]
[1725683607171,0.8155,2242.2,2242.1,0.83082]
[1725683607676,0.3694,2242.2,2242.1,0.83082]
[1725683607970,0.8155,2242.2,2242.1,0.83082]
[1725683608269,0.3694,2242.2,2242.1,0.83082]
[1725683608475,0.8155,2242.2,2242.1,0.83082]
[1725683608770,0.3694,2242.2,2242.1,0.83082]
[1725683612581,6.1194,2242.2,2241.8,3.5765]
[1725683612767,9.54781215,2242.2,2242.0,0.44614]
[1725683613076,6.34001215,2242.2,2242.0,0.44614]
[1725683614080,0.44612,2242.1,2242.0,0.44614]
[1725683614680,0.44612,2242.1,2241.9,0.44614]
[1725683614882,0.396,2242.0,2241.9,0.44614]
[1725683615472,0.41240577,2242.0,2241.9,0.44614]
[1725683616782,0.41240574,2242.0,2241.9,0.44614]
[1725683617477,0.396,2242.0,2241.9,0.44614]
[1725683618579,0.396,2242.0,2241.8,0.7548]
[1725683618769,0.84214,2242.0,2241.8,0.83227]
[1725683619176,5.46531406,2241.9,2241.8,0.3861]
[1725683619478,0.44618,2241.8,2241.7,0.3613]
[1725683619684,0.83108,2241.8,2241.7,0.3613]
[1725683621091,0.44624,2241.5,2241.3,2.20001914]
[1725683621276,0.44624,2241.5,2241.4,0.3752]
[1725683621480,0.46264943,2241.5,2241.4,0.82146]
[1725683621682,0.46264943,2241.5,2241.4,0.3752]
[1725683622590,0.01640943,2241.5,2241.4,0.82146]
[1725683622986,0.44623,2241.6,2241.4,0.82146]
[1725683625389,0.44623,2241.6,2241.4,0.3752]
[1725683625788,0.44623,2241.6,2241.4,0.82146]
[1725683626096,0.44623,2241.6,2241.4,0.3752]
[1725683627291,0.44623,2241.6,2241.4,0.82146]
[1725683629789,0.44624,2241.5,2241.4,0.3752]
[1725683630596,5.3602303,2241.6,2241.4,0.82146]
[1725683632804,0.44624,2241.5,2241.4,0.82146]
[1725683633203,5.3602303,2241.6,2241.4,0.82146]
[1725683634403,4.9140003,2241.6,2241.5,0.44624]
[1725683634603,0.3629,2241.7,2241.6,0.44622]
[1725683635013,0.80911,2241.7,2241.6,0.44622]
[1725683635316,0.80911,2241.7,2241.5,0.7768]
[1725683636012,0.80911,2241.7,2241.5,1.22302]
[1725683638610,0.80911,2241.7,2241.6,0.44622]
[1725683639913,0.80911,2241.7,2241.5,1.22303]
[1725683640107,0.80911,2241.7,2241.6,0.44622]
[1725683640310,0.3629,2241.7,2241.6,0.44622]
[1725683640508,2.12109,2241.8,2241.7,0.4462]
[1725683640509,1.29,2241.8,2241.7,0.4462]
[1725683641007,10.40243787,2241.8,2241.7,0.4462]
[1725683641210,9.11243787,2241.8,2241.7,0.4462]
[1725683643712,4.65163787,2241.8,2241.7,0.4462]
[1725683647520,2.51417,2241.9,2241.8,0.44618]
[1725683647521,1.29,2241.9,2241.8,0.44618]
[1725683648723,1.29,2241.9,2241.7,0.82328]
[1725683649123,1.73616,2241.9,2241.7,0.82328]
[1725683649318,1.29,2241.9,2241.8,0.44618]
[1725683649520,1.29,2241.9,2241.7,0.82328]
[1725683651415,1.73616,2241.9,2241.7,0.82328]
[1725683655924,2.12874,2242.0,2241.8,0.44616]
[1725683656130,2.12874,2242.0,2241.9,0.3826]
[1725683656515,0.83874,2242.0,2241.9,0.3826]
[1725683656720,3.5926,2242.2,2241.9,0.3826]
[1725683656925,4.8826,2242.2,2242.1,0.44612]
[1725683657530,3.2078,2242.2,2242.1,0.44612]
[1725683657826,3.2078,2242.2,2242.0,1.19662]
[1725683657827,4.4978,2242.2,2242.0,1.19662]
[1725683658432,4.4978,2242.2,2242.1,0.44612]
[1725683659326,1.29,2242.2,2242.1,0.44612]
[1725683661729,1.29,2242.2,2241.6,3.2078]
[1725683662031,0.44616,2241.9,2241.7,0.81079]
[1725683662232,0.3766,2241.8,2241.7,0.81079]
[1725683662427,0.7523,2241.8,2241.7,0.81079]
[1725683663932,4.11,2242.4,2242.3,0.44608]
[1725683664123,0.78084181,2242.5,2242.3,0.44608]
[1725683664325,0.7529,2242.7,2242.2,3.65388]
[1725683664524,0.44602,2242.6,2242.3,0.3646]
[1725683664830,0.7529,2242.7,2242.3,0.3646]
[1725683665130,0.385,2242.7,2242.4,0.3827]
[1725683665334,0.7529,2242.7,2242.4,0.3827]
[1725683665833,0.44603,2242.6,2242.4,0.3827]
[1725683666131,0.44603,2242.6,2242.3,0.81067]
[1725683666336,0.3897,2242.5,2242.3,0.81067]
[1725683666629,0.3897,2242.5,2242.4,0.44606]
[1725683675538,0.3897,2242.5,2242.3,4.01846]
[1725683675737,0.3897,2242.5,2242.4,0.44606]
[1725683678142,0.3897,2242.5,2242.3,4.01846]
[1725683678448,0.3897,2242.5,2242.3,3.5724]
[1725683679947,0.3897,2242.5,2242.3,0.3646]
[1725683680247,0.3897,2242.5,2242.4,0.44606]
[1725683693158,0.3897,2242.5,2242.4,3.65386]
[1725683698756,0.3897,2242.5,2242.4,0.44606]
[1725683699561,0.6175645,2242.5,2242.4,0.44606]
[1725683700262,1.0636045,2242.5,2242.4,0.44606]
[1725683700458,0.83574,2242.5,2242.4,0.44606]
[1725683700654,1.06360365,2242.5,2242.4,0.44606]
[1725683701257,1.06360365,2242.5,2242.3,3.5724]
[1725683701453,0.22786365,2242.4,2242.3,4.01848]
[1725683702971,0.22780483,2242.4,2242.3,4.01848]
[1725683703270,0.22780483,2242.4,2242.3,0.81068]
[1725683703567,0.22780483,2242.4,2242.3,4.01848]
[1725683704660,0.44612,2242.1,2241.8,1.16793572]
[1725683704873,0.44617,2241.9,2241.7,0.44619]
[1725683705167,2.29620483,2242.0,2241.7,0.3608]
[1725683705168,0.67398483,2241.8,2241.7,0.3608]
[1725683705573,0.66858345,2241.8,2241.6,1.71933055]
[1725683705766,0.66858345,2241.7,2241.6,2.16555055]
[1725683705964,0.66858345,2241.7,2241.6,5.68773355]
[1725683706160,0.66858345,2241.7,2241.6,11.84989697]
[1725683706561,1e-08,2241.7,2241.6,10.09614783]
[1725683706864,1e-08,2241.7,2241.6,11.84935218]
[1725683707365,0.44612,2242.1,2241.9,0.44614]
[1725683707560,0.44612,2242.1,2242.0,0.3718]
[1725683707767,0.46252522,2242.1,2242.0,0.3718]
[1725683708068,0.46252524,2242.1,2242.0,0.3718]
[1725683708276,0.44612,2242.1,2242.0,0.3718]
[1725683709673,0.46252525,2242.1,2242.0,0.3718]
[1725683710759,3.67032525,2242.1,2242.0,0.3718]
[1725683711361,3.65392,2242.1,2242.0,0.12722934]
[1725683711566,3.67032531,2242.1,2242.0,0.12722934]
[1725683711972,0.46252531,2242.1,2242.0,0.12722934]
[1725683712162,4.33950531,2242.1,2241.8,0.7765]
[1725683712472,4.3231,2242.1,2241.8,0.7765]
[1725683713073,0.44616,2241.9,2241.8,0.7765]
[1725683714071,0.44616,2241.9,2241.8,1.22268]
[1725683714776,0.44616,2241.9,2241.8,0.7765]
[1725683716869,0.88645345,2241.9,2241.8,0.7765]
[1725683718877,1.11397228,2241.9,2241.8,0.7765]
[1725683719071,1.11397228,2241.9,2241.8,1.22268]
[1725683719877,1.50267228,2241.9,2241.8,0.7765]
[1725683720075,1.27528954,2241.9,2241.8,0.7765]
[1725683720279,1.50280825,2241.9,2241.8,0.7765]
[1725683720579,1.50280825,2241.9,2241.8,0.3543709]
[1725683720972,1.50280825,2241.9,2241.7,1.98021303]
[1725683721276,0.66794825,2241.8,2241.7,1.98021303]
[1725683723576,0.7507,2241.9,2241.8,0.44618]
[1725683723884,1.41847437,2241.9,2241.8,0.44618]
[1725683725371,0.66777437,2241.9,2241.8,0.44618]
[1725683725578,0.66777437,2241.9,2241.8,7.36571303]
[1725683725778,0.66777437,2241.9,2241.8,9.59757508]
[1725683726978,0.66777437,2241.9,2241.8,6.19698]
[1725683727282,0.4461,2242.2,2242.0,0.44613]
[1725683727478,0.44026316,2242.1,2242.0,0.44613]
[1725683727683,0.66765591,2242.1,2242.0,0.44613]
[1725683731985,0.66764744,2242.1,2242.0,0.44613]
[1725683735281,6.80324744,2242.1,2241.8,1.16873303]
[1725683735486,0.44617,2241.9,2241.8,0.44618]
[1725683735685,1.11381744,2241.9,2241.7,0.3653]
[1725683735882,0.22738947,2241.8,2241.7,0.8115]
[1725683738182,5.71685,2242.0,2241.8,0.44616]
[1725683738779,0.67350455,2241.9,2241.8,0.44616]
[1725683739076,4.68814455,2241.9,2241.6,1.16873303]
[1725683739279,3.2078,2241.7,2241.6,1.16873303]
[1725683739479,3.88134455,2241.7,2241.5,0.44622]
[1725683739679,0.59194455,2241.6,2241.5,0.44622]
[1725683741886,0.3646,2241.6,2241.5,0.44622]
[1725683742092,3.79980342,2241.6,2241.5,0.44622]
[1725683743590,3.43520342,2241.6,2241.5,0.44622]
[1725683744894,3.2078,2241.6,2241.5,0.44622]
[1725683745093,0.22740197,2241.6,2241.5,1.61495303]
[1725683745692,0.22740197,2241.6,2241.5,5.72176883]
[1725683745890,0.22740197,2241.6,2241.5,8.42936448]
[1725683746192,0.22740197,2241.6,2241.5,10.76949888]
[1725683746592,0.22740197,2241.6,2241.5,9.47949888]
[1725683746791,0.22740197,2241.6,2241.5,8.42936448]
[1725683748092,0.22740197,2241.6,2241.5,10.76949888]
[1725683748589,0.22740197,2241.6,2241.5,10.76933904]
[1725683748987,0.22740197,2241.6,2241.5,10.18105875]
[1725683750592,0.83935,2242.0,2241.7,0.44618]
[1725683750790,0.22735406,2241.9,2241.7,0.44618]
[1725683750989,0.83935,2242.0,2241.8,0.80798]
[1725683751187,0.22735405,2241.9,2241.8,0.80798]
[1725683752894,0.22735405,2241.9,2241.8,0.3618]
[1725683753601,0.67351405,2241.9,2241.8,0.3618]
[1725683753808,0.4462,2241.7,2241.6,1.16844594]
[1725683753998,0.4462,2241.7,2241.5,1.61468594]
[1725683753999,0.67357497,2241.7,2241.5,1.61468594]
[1725683754308,1.34267497,2241.6,2241.5,0.44624]
[1725683754799,1.78889497,2241.6,2241.4,1.61469594]
[1725683754993,0.22737497,2241.5,2241.4,1.61469594]
[1725683757209,0.22737497,2241.5,2241.4,4.43054117]
[1725683757707,1.1153,2241.6,2241.5,0.44624]
[1725683757915,1.34270182,2241.6,2241.5,1.61482887]
[1725683759902,1.34270182,2241.6,2241.5,1.16858887]
[1725683760307,1.34270182,2241.6,2241.5,1.61482887]
[1725683760809,1.34270177,2241.6,2241.5,1.61482887]
[1725683761502,1.78892177,2241.6,2241.5,1.16858887]
[1725683761706,1.78892177,2241.6,2241.4,2.19810411]
[1725683761707,1.78892177,2241.6,2241.4,1.61483887]
[1725683761905,0.22740177,2241.5,2241.4,1.61483887]
[1725683762111,0.22740177,2241.5,2241.4,3.84733032]
[1725683763009,1.1153,2241.6,2241.5,0.44624]
[1725683763402,1.34271201,2241.6,2241.5,0.44624]
[1725683765703,1.34271201,2241.6,2241.4,1.61482887]
[1725683765906,0.27631201,2241.5,2241.4,1.61482887]
[1725683766109,0.27631201,2241.5,2241.4,3.8473103]
[1725683766903,0.27631201,2241.5,2241.4,1.61482887]
[1725683768408,0.27631201,2241.5,2241.4,2.01152887]
[1725683768607,0.27631201,2241.5,2241.4,2.37942887]
[1725683769517,0.27631174,2241.5,2241.4,2.37942887]
[1725683770309,0.27631174,2241.5,2241.4,2.01152887]
[1725683770704,0.27631174,2241.5,2241.4,1.56528887]
[1725683771008,0.27631174,2241.5,2241.4,1.16858887]
[1725683771405,0.27631174,2241.5,2241.4,1.61484887]
[1725683771710,0.27631174,2241.5,2241.4,1.16858887]
[1725683772009,0.27631174,2241.5,2241.4,1.61484887]
[1725683772213,0.27631174,2241.5,2241.4,0.44626]
[1725683772714,0.27631257,2241.5,2241.4,0.44626]
[1725683776118,0.27631257,2241.5,2241.3,1.61484887]
[1725683776119,0.72256797,2241.5,2241.3,1.61484887]
[1725683776308,0.22741797,2241.4,2241.3,0.44626]
[1725683777210,0.22741797,2241.4,2241.3,1.61484887]
[1725683778318,0.22741797,2241.4,2241.3,2.00454887]
[1725683778820,0.22741797,2241.4,2241.3,4.23698965]
[1725683779319,0.22741797,2241.4,2241.3,3.0684048]
[1725683780211,0.0489,2241.5,2241.4,0.44626]
[1725683780419,0.27630312,2241.5,2241.4,5.18160041]
[1725683781819,1.11524,2242.3,2241.4,23.52403671]
[1725683782019,0.22733577,2241.9,2241.8,1.61343788]
[1725683782220,4.11,2242.3,2241.8,9.55622776]
[1725683782523,2.73624637,2242.4,2242.2,0.4461]
[1725683782716,1.22856,2242.4,2242.3,0.3766]
[1725683783112,5.91583557,2242.4,2242.3,0.12904276]
[1725683783311,5.46977557,2242.4,2242.3,0.57512276]
[1725683783513,5.46977557,2242.4,2242.3,0.12904276]
[1725683785121,1.00977557,2242.4,2242.3,0.12904276]
[1725683785323,1.45583557,2242.4,2242.2,0.82078]
[1725683785625,1.51727557,2242.3,2242.2,0.44608]
[1725683787427,1.51711993,2242.3,2242.2,0.44608]
[1725683792435,1.51711728,2242.3,2242.2,0.44608]
[1725683795037,1.89711728,2242.3,2242.2,0.44608]
[1725683795529,1.67,2242.3,2242.2,0.44608]
[1725683795929,1.89711986,2242.3,2242.2,0.44608]
[1725683797529,1.51711986,2242.3,2242.2,0.44608]
[1725683797734,1.51711986,2242.3,2242.2,1.19638]
[1725683798724,1.29,2242.3,2242.2,1.19638]
[1725683799237,1.5171143,2242.3,2242.2,1.19638]
[1725683802028,1.5171143,2242.3,2242.2,0.83588]
[1725683804532,1.5171143,2242.3,2242.2,0.44608]
[1725683812142,1.29,2242.3,2242.2,0.44608]
[1725683812340,1.51712754,2242.3,2242.2,0.44608]
[1725683814447,1.29,2242.3,2242.2,0.44608]
[1725683814649,1.51713203,2242.3,2242.2,0.44608]
[1725683815246,0.22713203,2242.3,2242.2,0.44608]
[1725683818454,0.7825,2242.4,2242.2,0.44608]
[1725683818653,0.22712489,2242.3,2242.2,0.44608]
[1725683819652,0.7825,2242.4,2242.2,0.44608]
[1725683819857,0.227123,2242.3,2242.2,0.44608]
[1725683823754,2.28850454,2242.9,2242.8,0.44598]
[1725683824051,1.0032872,2242.9,2242.8,3.65378]
[1725683824251,0.2270872,2242.9,2242.8,4.94378]
[1725683824464,0.2270872,2242.9,2242.8,9.11861742]
[1725683824660,0.2270872,2242.9,2242.8,9.70194865]
[1725683825360,0.7762,2243.2,2243.1,0.44592]
[1725683827751,0.7762,2243.2,2242.9,0.3607]
[1725683827960,0.7762,2243.2,2243.1,0.44592]
[1725683835564,1.1148,2243.1,2242.5,3.2078]
[1725683835867,0.44597,2242.9,2242.7,0.44599]
[1725683836172,0.7596,2242.8,2242.7,0.44599]
[1725683836370,1.1349,2242.8,2242.7,0.44599]
[1725683840474,1.1349,2242.8,2242.5,0.3616]
[1725683840769,1.1349,2242.8,2242.6,0.44602]
[1725683842071,1.1349,2242.8,2242.7,0.446]
[1725683842270,1.58088,2242.8,2242.6,0.44601]
[1725683842477,0.446,2242.7,2242.5,0.44603]
[1725683843770,2.87089,2242.8,2242.6,0.44602]
[1725683845080,2.87089,2242.8,2242.7,0.446]
[1725683845081,2.4249,2242.8,2242.7,0.446]
[1725683845271,2.87088,2242.8,2242.7,0.446]
[1725683845575,7.33008,2242.8,2242.7,0.446]
[1725683847377,7.33008,2242.8,2242.4,0.3994]
[1725683847378,7.33008,2242.8,2242.6,0.446]
[1725683847578,2.87088,2242.8,2242.6,0.446]
[1725683847776,0.446,2242.7,2242.6,0.446]
[1725683847967,2.87089,2242.8,2242.6,0.446]
[1725683850477,0.44601,2242.7,2242.5,0.44603]
[1725683851283,2.4249,2242.8,2242.6,0.44602]
[1725683851482,0.446,2242.7,2242.5,0.44602]
[1725683851871,2.4249,2242.8,2242.7,0.446]
[1725683852378,6.8841,2242.8,2242.7,0.446]
[1725683852775,5.5941,2242.8,2242.7,0.446]
[1725683853885,1.1349,2242.8,2242.7,0.446]
[1725683854085,1.58088,2242.8,2242.7,0.446]
[1725683856589,1.21098,2242.8,2242.7,0.446]
[1725683856790,1.21098,2242.8,2242.6,0.446]
[1725683857181,0.446,2242.7,2242.6,0.446]
[1725683860099,1.21099,2242.8,2242.6,0.446]
[1725683862204,0.3753,2242.8,2242.7,0.446]
[1725683862498,3.65375,2243.0,2242.8,0.44597]
[1725683862700,0.01639969,2242.9,2242.8,0.44597]
[1725683863902,0.46235969,2242.9,2242.8,0.44597]
[1725683864101,0.46235969,2242.9,2242.7,0.44598]
[1725683864408,0.44596,2242.9,2242.8,0.3771]
[1725683864604,0.01639973,2242.9,2242.8,0.82308]
[1725683864991,3.65375,2243.0,2242.8,0.82308]
[1725683865597,0.44596,2242.9,2242.8,0.82308]
[1725683869006,1.1513,2243.1,2243.0,0.44594]
[1725683869201,1.1513,2243.1,2242.8,0.3771]